bitfinex-derivatives/quotes_ETHF0:USTF0_20241026
["timestamp","ask_amount","ask_price","bid_price","bid_amount"]
[1729983798406,3.2078,2487.4,2487.1,0.12587902]
[1729983798610,3.2078,2487.4,2487.2,1.26571]
[1729983798611,0.40251,2487.3,2487.2,1.26571]
[1729983799097,4.42331,2487.3,2487.2,1.26571]
[1729983806202,0.40251,2487.3,2487.2,1.26571]
[1729983810505,3.2078,2487.5,2487.2,0.8632]
[1729983810710,0.4025,2487.4,2487.3,0.82099]
[1729983811516,0.4025,2487.4,2487.3,0.4185]
[1729983817514,0.4025,2487.4,2487.3,0.821]
[1729983818908,0.4025,2487.4,2487.3,0.4185]
[1729983824524,3.2078,2487.6,2487.3,0.4185]
[1729983824718,3.2078,2487.6,2487.5,0.40247]
[1729983825018,3.2078,2487.9,2487.8,0.40242]
[1729983825621,3.2078,2487.9,2487.8,0.52826368]
[1729983826212,3.2078,2487.9,2487.8,0.40242]
[1729983827321,3.61017,2488.1,2488.0,0.40239]
[1729983827907,0.40237,2488.1,2487.9,0.40239]
[1729983828115,0.40237,2488.1,2487.7,0.4231]
[1729983828116,0.40235,2488.3,2488.1,0.40236]
[1729983828321,0.40235,2488.3,2488.2,0.4463]
[1729983828821,4.42155,2488.3,2488.2,0.4463]
[1729983832718,3.2078,2488.4,2488.3,0.40234]
[1729983832920,7.87913249,2488.7,2488.2,0.4463]
[1729983833121,7.87913249,2488.7,2488.5,0.4023]
[1729983833418,7.87913249,2488.7,2488.6,1.2994]
[1729983833820,7.47684249,2488.7,2488.6,1.70169]
[1729983834118,7.47684249,2488.7,2488.6,5.72009]
[1729983834322,3.2078,2489.0,2488.6,5.3178]
[1729983834621,4.12,2489.3,2488.6,5.3178]
[1729983834812,3.60997,2489.4,2489.1,0.4022]
[1729983835017,3.60997,2489.4,2489.2,0.4057]
[1729983835215,0.708,2489.6,2489.2,0.4057]
[1729983835418,0.708,2489.6,2489.2,0.80788]
[1729983835620,0.40214,2489.5,2489.2,0.80788]
[1729983835822,0.708,2489.6,2489.2,0.4057]
[1729983835823,0.40217,2489.4,2489.2,0.4057]
[1729983836011,0.40217,2489.4,2489.2,0.8309]
[1729983836217,0.40217,2489.4,2489.2,1.2582]
[1729983836619,0.40218,2489.3,2489.2,1.2582]
[1729983838125,0.40217,2489.4,2489.2,1.66039]
[1729983839120,0.40217,2489.4,2489.2,1.2582]
[1729983839315,0.40217,2489.4,2489.2,1.66039]
[1729983840019,0.40217,2489.4,2489.2,1.2582]
[1729983842627,0.40218,2489.3,2489.2,1.2582]
[1729983845423,0.40222,2489.1,2488.7,3.2078]
[1729983845624,0.40222,2489.1,2488.9,0.40224]
[1729983847829,0.40222,2489.0,2488.9,0.40224]
[1729983848233,3.6519,2489.2,2488.9,0.40224]
[1729983848425,0.40222,2489.1,2488.9,0.40224]
[1729983848631,0.4441,2489.2,2488.9,0.40224]
[1729983848822,0.40222,2489.0,2488.9,0.40224]
[1729983850127,0.40222,2489.1,2488.9,0.40224]
[1729983850322,0.40222,2489.1,2489.0,0.40222]
[1729983850626,3.6519,2489.2,2488.7,0.8151]
[1729983851029,0.40223,2489.0,2488.9,0.40223]
[1729983851935,0.40222,2489.1,2489.0,0.40222]
[1729983853132,3.61,2489.2,2488.8,0.40226]
[1729983853331,4.828,2489.6,2488.8,1.00565]
[1729983853332,3.2078,2489.5,2488.8,1.00565]
[1729983853634,3.2078,2489.5,2489.4,0.40216]
[1729983855237,3.60994,2489.5,2489.4,0.40216]
[1729983855433,3.60994,2489.5,2489.1,0.872]
[1729983855434,3.60994,2489.5,2489.3,0.40216]
[1729983856035,3.60994,2489.5,2489.4,0.4128]
[1729983858139,0.40214,2489.5,2489.4,0.4128]
[1729983858434,3.2078,2489.6,2489.4,0.4128]
[1729983858635,3.60994,2489.6,2489.5,0.84184]
[1729983858833,3.60994,2489.6,2489.5,0.4397]
[1729983859338,3.2078,2489.6,2489.5,0.4397]
[1729983859638,3.2078,2489.6,2489.5,0.84184]
[1729983862035,3.2078,2489.7,2489.6,0.40211]
[1729983862334,0.4084,2490.0,2489.8,0.4021]
[1729983862335,0.40209,2489.9,2489.8,0.4021]
[1729983862529,0.40209,2489.9,2489.7,0.40211]
[1729983862736,0.40209,2489.9,2489.8,0.4021]
[1729983863242,3.60987,2490.0,2489.6,0.4097]
[1729983863433,3.60987,2490.0,2489.8,0.40208]
[1729983863633,3.60987,2490.0,2489.9,0.4217]
[1729983863830,3.60987,2490.0,2489.9,0.8308]
[1729983867635,0.40211,2489.7,2489.6,0.4097]
[1729983885346,3.60991,2489.7,2489.6,0.4097]
[1729983886244,0.40211,2489.7,2489.6,0.4097]
[1729983886641,3.60991,2489.7,2489.6,0.4097]
[1729983887440,0.40211,2489.7,2489.6,0.4097]
[1729983887643,3.60991,2489.7,2489.6,0.4097]
[1729983888642,0.40211,2489.7,2489.6,0.4097]
[1729983909263,0.40211,2489.7,2489.0,4.26442204]
[1729983909264,0.40221,2489.1,2489.0,0.11476204]
[1729983909456,3.2078,2489.2,2488.4,1.2734]
[1729983909655,0.40231,2488.5,2488.4,1.2734]
[1729983909856,0.40231,2488.5,2488.4,1.39919921]
[1729983910058,0.40231,2488.5,2488.4,5.2918]
[1729983917471,0.40229,2488.6,2488.4,5.2918]
[1729983917675,1.00554,2489.1,2488.5,4.4207]
[1729983917864,0.40229,2488.7,2488.5,0.4023]
[1729983918260,0.40229,2488.7,2488.6,4.0184]
[1729983925466,0.40229,2488.7,2488.6,4.42069]
[1729983925669,3.2078,2489.3,2488.6,4.0184]
[1729983925975,0.40224,2488.9,2488.7,0.40227]
[1729983926166,0.40224,2488.9,2488.8,0.8658]
[1729983927766,0.40224,2488.9,2488.8,5.28566]
[1729983927967,4.21326,2489.3,2488.8,4.8834]
[1729983928173,0.40224,2489.0,2488.9,0.40224]
[1729983928671,0.40224,2488.9,2488.8,1.26805]
[1729983929074,0.40224,2488.9,2488.8,5.28565]
[1729983933773,0.40224,2488.9,2488.8,1.26805]
[1729983935080,0.40224,2488.9,2488.8,0.8658]
[1729983937780,0.40227,2488.7,2488.6,0.81868]
[1729983942284,0.83057,2488.8,2488.7,0.40227]
[1729983946191,0.40227,2488.7,2488.6,0.81868]
[1729983951789,0.4283,2488.8,2488.6,0.81868]
[1729983951790,0.4283,2488.8,2488.6,0.4164]
[1729983951992,0.83057,2488.8,2488.7,0.40227]
[1729983955990,0.40227,2488.8,2488.7,1.28677]
[1729983956192,0.40227,2488.8,2488.7,1.41256354]
[1729983956393,0.40222,2489.0,2488.9,0.40223]
[1729983957706,0.40225,2488.9,2488.8,0.40225]
[1729983963501,0.40225,2488.9,2488.6,0.4164]
[1729983963502,0.40227,2488.7,2488.6,0.4164]
[1729983963706,3.6462,2488.8,2488.4,0.4422]
[1729983963898,1.8387,2488.7,2488.4,0.4422]
[1729983964198,0.40232,2488.4,2488.3,0.4267]
[1729983964796,0.84072,2488.4,2488.3,0.4267]
[1729983969105,0.84072,2488.4,2488.3,0.82904]
[1729983969106,0.40232,2488.4,2488.3,0.82904]
[1729983970311,3.2078,2488.6,2488.3,0.4267]
[1729983970608,0.40231,2488.5,2488.4,0.40231]
[1729983970808,0.40231,2488.5,2488.4,1.24471]
[1729983972703,0.40231,2488.5,2488.4,0.8424]
[1729983973205,0.40231,2488.5,2488.4,0.411]
[1729983973412,0.40232,2488.4,2488.3,0.4267]
[1729983977309,0.40235,2488.2,2488.1,0.40237]
[1729983977515,0.40235,2488.2,2488.1,0.84457]
[1729983996514,3.2078,2488.6,2488.1,0.4422]
[1729983996720,0.40233,2488.4,2488.3,0.40232]
[1729984009225,0.40233,2488.4,2488.3,0.5281396]
[1729984010431,0.40231,2488.5,2488.4,0.40231]
[1729984010625,0.4023,2488.6,2488.5,0.4023]
[1729984011027,0.4023,2488.6,2488.5,0.97391184]
[1729984011428,0.4023,2488.6,2488.5,0.8481]
[1729984013929,0.4023,2488.6,2488.5,0.97391175]
[1729984014125,0.4023,2488.6,2488.5,0.4458]
[1729984014740,0.4023,2488.6,2488.5,0.57161061]
[1729984014929,0.4023,2488.6,2488.5,0.4458]
[1729984016029,4.2135,2488.7,2488.2,3.2078]
[1729984016339,0.40234,2488.3,2488.2,3.2078]
[1729984016540,0.40232,2488.4,2488.3,0.12581719]
[1729984016834,1.42248,2488.5,2488.3,0.1258208]
[1729984017046,0.40235,2488.2,2488.1,0.40237]
[1729984017232,0.40235,2488.2,2488.1,0.5281917]
[1729984017926,0.40235,2488.2,2488.1,4.5473917]
[1729984018832,0.40235,2488.2,2488.1,0.5281917]
[1729984020440,0.40235,2488.2,2488.1,0.40237]
[1729984020843,0.40237,2488.1,2488.0,1.22368]
[1729984021042,0.40237,2488.1,2488.0,0.8213]
[1729984021641,0.40237,2488.1,2488.0,0.94712748]
[1729984022033,0.40237,2488.1,2488.0,1.34951748]
[1729984023244,0.40237,2488.1,2488.0,5.36871748]
[1729984023743,0.40237,2488.1,2488.0,5.49454728]
[1729984025144,0.40237,2488.1,2488.0,1.47534728]
[1729984025537,0.40237,2488.1,2488.0,1.34951748]
[1729984025737,0.40237,2488.1,2488.0,5.36871748]
[1729984025935,0.40237,2488.1,2488.0,5.49454535]
[1729984026138,0.40237,2488.1,2488.0,5.36871787]
[1729984026540,0.40237,2488.1,2488.0,1.34951787]
[1729984027147,0.40237,2488.1,2488.0,5.36871787]
[1729984027452,0.40237,2488.1,2488.0,1.34951787]
[1729984027846,0.40237,2488.1,2488.0,1.34951697]
[1729984031354,0.40237,2488.1,2488.0,0.94712697]
[1729984033059,0.40237,2488.1,2488.0,1.34951697]
[1729984033553,0.40237,2488.1,2488.0,0.94712697]
[1729984035258,0.40237,2488.1,2488.0,0.8213]
[1729984035461,0.40237,2488.1,2488.0,0.94712604]
[1729984041174,0.40237,2488.1,2488.0,0.94712619]
[1729984044268,0.40237,2488.1,2488.0,0.94712915]
[1729984046377,0.40237,2488.1,2488.0,0.8213]
[1729984046571,0.40237,2488.1,2488.0,0.94713026]
[1729984048470,0.40237,2488.1,2488.0,0.94712922]
[1729984048971,4.63028,2488.5,2488.0,0.94712922]
[1729984048972,3.6245,2488.5,2488.0,0.94712922]
[1729984049175,0.40236,2488.2,2488.1,0.52818922]
[1729984049574,0.40235,2488.3,2488.1,0.52818922]
[1729984049775,0.40235,2488.3,2488.2,0.55502922]
[1729984061477,0.40235,2488.3,2488.2,0.4292]
[1729984061784,0.40235,2488.3,2488.2,0.55501806]
[1729984065283,0.40235,2488.3,2488.2,0.4292]
[1729984065483,0.40235,2488.3,2488.2,0.55501957]
[1729984069391,0.40235,2488.3,2488.2,0.55501917]
[1729984076686,3.2078,2488.7,2488.2,4.57421917]
[1729984076988,0.40232,2488.4,2488.3,0.94845917]
[1729984077386,0.40232,2488.4,2488.3,4.96685917]
[1729984078381,0.40232,2488.4,2488.3,4.56451917]
[1729984079988,0.40232,2488.4,2488.3,0.94845917]
[1729984080292,0.40232,2488.4,2488.3,0.54611917]
[1729984080498,0.40234,2488.3,2488.2,0.4292]
[1729984080697,0.40234,2488.3,2488.2,0.55501811]
[1729984080996,0.40234,2488.3,2488.2,0.12581811]
[1729984081191,1.41828,2488.5,2488.1,3.6504]
[1729984081383,0.40235,2488.2,2488.1,3.6504]
[1729984081589,0.40235,2488.2,2488.1,3.77622438]
[1729984082190,0.40235,2488.2,2488.1,0.56842438]
[1729984083287,0.40235,2488.2,2488.1,0.4426]
[1729984083488,0.40235,2488.2,2488.1,0.5684243]
[1729984086194,0.40235,2488.2,2488.1,0.4426]
[1729984087292,0.40235,2488.2,2488.1,0.56842548]
[1729984087495,0.40235,2488.2,2488.1,0.12582548]
[1729984087496,4.42155,2488.2,2488.1,0.12582548]
[1729984087698,1.00593,2488.1,2487.5,3.2078]
[1729984088003,0.40245,2487.7,2487.6,0.82035]
[1729984088502,1.44673,2488.1,2487.6,0.82035]
[1729984088688,0.40243,2487.8,2487.7,0.4058]
[1729984093918,0.40243,2487.8,2487.7,0.8124]
[1729984114816,4.02,2487.8,2487.4,3.2078]
[1729984115013,0.40245,2487.6,2487.5,0.8388]
[1729984115311,0.40245,2487.6,2487.5,1.24127]
[1729984125321,0.40245,2487.6,2487.5,1.36711863]
[1729984128129,0.40245,2487.6,2487.5,1.36711902]
[1729984128333,0.819,2487.9,2487.5,0.96464902]
[1729984128528,0.40245,2487.7,2487.6,0.84345]
[1729984128825,0.40245,2487.7,2487.6,0.441]
[1729984129532,0.40245,2487.7,2487.6,0.56684827]
[1729984129830,0.40245,2487.7,2487.6,0.96929827]
[1729984130526,0.40245,2487.7,2487.6,0.96929802]
[1729984130928,0.40245,2487.7,2487.6,0.56684802]
[1729984133428,0.40245,2487.7,2487.6,0.96929802]
[1729984134330,0.40245,2487.7,2487.6,0.441]
[1729984134531,0.40245,2487.7,2487.6,0.56684575]
[1729984138237,0.40245,2487.7,2487.6,0.441]
[1729984138433,0.40245,2487.7,2487.6,0.56684981]
[1729984140237,0.40245,2487.7,2487.6,0.96929981]
[1729984140428,0.40245,2487.7,2487.6,0.56684981]
[1729984141227,0.40245,2487.7,2487.6,0.56685057]
[1729984142739,0.40245,2487.7,2487.6,0.96930057]
[1729984143236,0.40245,2487.7,2487.6,0.56685057]
[1729984145636,0.40245,2487.7,2487.6,0.96930057]
[1729984148033,0.40245,2487.7,2487.6,0.84345]
[1729984149631,0.40245,2487.7,2487.6,0.441]
[1729984150231,0.40245,2487.7,2487.6,0.84345]
[1729984151436,0.40245,2487.7,2487.6,0.96929872]
[1729984151841,0.40245,2487.7,2487.6,0.56684872]
[1729984155641,0.40245,2487.7,2487.6,0.441]
[1729984155836,0.40245,2487.7,2487.6,0.56685125]
[1729984159447,0.40245,2487.7,2487.6,0.56685134]
[1729984160143,0.40245,2487.7,2487.6,0.96930134]
[1729984160534,0.40245,2487.7,2487.6,0.56685134]
[1729984161742,0.40245,2487.7,2487.6,0.96930134]
[1729984162934,0.40245,2487.7,2487.6,0.96930069]
[1729984163342,0.40245,2487.7,2487.6,0.56685069]
[1729984163646,0.40245,2487.7,2487.6,0.96930069]
[1729984170253,0.40245,2487.7,2487.6,0.84345]
[1729984170440,0.40245,2487.7,2487.6,0.96930078]
[1729984171647,0.40245,2487.7,2487.6,0.56685078]
[1729984172349,0.40245,2487.7,2487.6,0.96930078]
[1729984173045,1.00586,2488.3,2487.6,7.79465078]
[1729984173348,1.00586,2488.3,2487.7,0.52828078]
[1729984173349,0.40242,2487.8,2487.7,0.52828078]
[1729984173544,0.40242,2487.9,2487.8,0.40242]
[1729984173750,0.40242,2487.9,2487.8,0.54665078]
[1729984173944,0.40242,2487.9,2487.8,0.4208]
[1729984174144,0.40242,2487.9,2487.8,0.94905928]
[1729984175546,0.4024,2488.0,2487.9,0.4024]
[1729984175846,0.4024,2488.0,2487.9,1.34783928]
[1729984177554,0.4024,2488.0,2487.9,1.34783659]
[1729984180948,0.4024,2488.0,2487.9,1.222]
[1729984181148,0.4024,2488.0,2487.9,1.34783584]
[1729984181344,0.4024,2488.0,2487.9,1.222]
[1729984192659,0.40238,2488.1,2488.0,0.40238]
[1729984193465,0.40239,2488.0,2487.9,1.22199]
[1729984194763,0.40238,2488.1,2488.0,0.40238]
[1729984195067,0.4023,2488.6,2488.4,0.40231]
[1729984195267,0.4023,2488.6,2488.5,0.81601]
[1729984195760,0.4023,2488.6,2488.5,0.4137]
[1729984196163,0.4023,2488.6,2488.5,0.81601]
[1729984200866,1.679,2488.8,2488.5,0.4137]
[1729984201372,0.40229,2488.6,2488.5,0.816]
[1729984202267,0.40228,2488.7,2488.6,0.40229]
[1729984204676,0.40228,2488.7,2488.6,0.84039]
[1729984212583,3.2078,2489.3,2488.7,1.00569]
[1729984212777,1.81939,2489.5,2488.7,4.21349]
[1729984212778,4.0685,2489.5,2488.7,4.21349]
[1729984213084,0.40218,2489.3,2489.2,0.40219]
[1729984213789,0.40218,2489.3,2488.8,1.43864]
[1729984213790,0.40219,2489.2,2489.1,0.4022]
[1729984214085,0.40219,2489.2,2488.8,0.433]
[1729984214086,0.40219,2489.3,2488.8,0.433]
[1729984214281,0.40219,2489.3,2489.2,0.40219]
[1729984215479,5.302,2489.5,2488.8,0.433]
[1729984215689,0.4022,2489.2,2489.1,0.4022]
[1729984217589,0.40222,2489.1,2489.0,0.40222]
[1729984217788,0.4022,2489.2,2489.1,0.40221]
[1729984231293,0.4022,2489.2,2489.1,0.80221]
[1729984234396,0.4022,2489.2,2489.1,0.4]
[1729984236094,0.4022,2489.2,2489.1,0.80221]
[1729984239699,0.40219,2489.3,2489.2,0.40219]
[1729984240199,0.40219,2489.3,2489.2,0.81559]
[1729984240787,0.40219,2489.3,2489.2,0.4134]
[1729984243905,0.40219,2489.3,2489.2,0.81559]
[1729984244096,0.40219,2489.3,2489.2,0.4134]
[1729984245304,5.302,2489.5,2489.1,0.8464]
[1729984245600,0.40219,2489.2,2489.1,0.8464]
[1729984246404,0.40219,2489.2,2489.1,1.24861]
[1729984247503,0.40219,2489.2,2489.1,0.8464]
[1729984248705,0.40219,2489.2,2489.1,1.24861]
[1729984249899,0.40219,2489.2,2489.1,0.8464]
[1729984250208,0.40219,2489.2,2489.1,1.24861]
[1729984251605,0.40219,2489.2,2489.1,0.8464]
[1729984252208,0.40219,2489.2,2489.1,1.24861]
[1729984253110,0.40219,2489.2,2489.1,0.8464]
[1729984253613,0.40219,2489.2,2489.1,1.24861]
[1729984253811,0.40219,2489.2,2489.1,0.4]
[1729984254013,0.40227,2488.7,2488.6,0.83197]
[1729984254205,0.40227,2488.7,2488.6,0.95776102]
[1729984254400,0.40227,2488.7,2488.6,0.83197]
[1729984254605,0.40227,2488.7,2488.6,1.26107]
[1729984255315,0.84637,2488.8,2488.7,0.40227]
[1729984255507,0.40227,2488.8,2488.7,0.40227]
[1729984260317,0.40227,2488.7,2488.6,1.26108]
[1729984261320,0.816,2488.9,2488.6,0.8588]
[1729984261526,0.40227,2488.8,2488.7,0.40227]
[1729984264630,0.40227,2488.7,2488.6,0.8588]
[1729984266031,0.40227,2488.7,2488.6,1.26109]
[1729984266236,0.40227,2488.7,2488.6,0.8588]
[1729984268232,4.0184,2488.7,2488.3,5.51162703]
[1729984268439,0.40232,2488.4,2488.3,5.91394703]
[1729984271334,0.4448,2488.6,2488.2,1.3107]
[1729984271533,0.40234,2488.3,2488.2,1.3107]
[1729984272635,4.42154,2488.3,2488.2,1.3107]
[1729984274539,4.42154,2488.3,2488.2,0.4318]
[1729984281246,0.40234,2488.3,2488.2,0.4318]
[1729984282045,3.61014,2488.3,2488.2,0.4318]
[1729984282447,0.40234,2488.3,2488.2,0.4318]
[1729984282646,3.61014,2488.3,2488.2,0.4318]
[1729984284645,7.227,2488.3,2488.1,0.826]
[1729984284849,0.4024,2488.0,2487.9,1.2558]
[1729984321467,3.6102,2488.0,2487.9,1.2558]
[1729984321664,0.4024,2488.0,2487.9,1.2558]
[1729984322165,3.6102,2488.0,2487.9,1.2558]
[1729984322562,0.40247,2487.5,2487.4,3.2078]
[1729984322765,0.40248,2487.4,2487.3,0.846]
[1729984323465,3.61028,2487.4,2487.3,0.846]
[1729984325977,0.40248,2487.4,2487.3,0.846]
[1729984326163,0.4148,2487.7,2487.3,0.846]
[1729984326164,3.6226,2487.7,2487.3,0.846]
[1729984326466,0.815,2487.8,2487.7,0.40243]
[1729984332963,3.2078,2487.9,2487.4,0.4139]
[1729984333166,0.815,2487.8,2487.5,1.00618]
[1729984333364,0.815,2487.8,2487.7,0.40244]
[1729984347576,3.61019,2488.0,2487.8,0.40241]
[1729984347776,3.61019,2488.0,2487.9,0.4183]
[1729984347980,4.42519,2488.0,2487.9,0.4183]
[1729984350682,1.21739,2488.0,2487.9,0.4183]
[1729984350978,4.42519,2488.0,2487.9,0.4183]
[1729984353581,1.21739,2488.0,2487.9,0.4183]
[1729984353878,4.42519,2488.0,2487.9,0.4183]
[1729984357181,1.21739,2488.0,2487.9,0.4183]
[1729984357376,4.42519,2488.0,2487.9,0.4183]
[1729984357984,1.21739,2488.0,2487.9,0.4183]
[1729984358185,4.42519,2488.0,2487.9,0.4183]
[1729984358777,1.21739,2488.0,2487.9,0.4183]
[1729984358974,4.42519,2488.0,2487.9,0.4183]
[1729984359578,1.21739,2488.0,2487.9,0.4183]
[1729984359787,4.42519,2488.0,2487.9,0.4183]
[1729984361482,4.0228,2488.0,2487.9,0.4183]
[1729984361783,4.0228,2488.0,2487.9,0.8207]
[1729984361981,4.0228,2488.0,2487.9,1.2431]
[1729984362286,4.42519,2488.0,2487.9,0.8407]
[1729984362489,4.42519,2488.0,2487.9,1.2431]
[1729984363588,4.42519,2488.0,2487.9,0.8407]
[1729984364981,1.21739,2488.0,2487.9,0.8407]
[1729984365182,4.42519,2488.0,2487.9,0.8407]
[1729984366984,1.21739,2488.0,2487.9,0.8407]
[1729984367286,4.42519,2488.0,2487.9,0.8407]
[1729984367486,4.0228,2488.0,2487.9,1.2431]
[1729984368083,0.4133,2488.3,2488.2,0.40235]
[1729984368084,3.2078,2488.3,2488.2,0.40235]
[1729984368284,1.21734,2488.3,2488.1,0.40236]
[1729984368479,0.815,2488.3,2488.1,0.40236]
[1729984369188,0.815,2488.3,2487.9,0.8407]
[1729984369588,1.21734,2488.3,2488.1,0.40236]
[1729984370684,0.815,2488.3,2487.9,0.8407]
[1729984370984,0.40237,2488.1,2487.9,1.24309]
[1729984371592,0.85107,2488.1,2487.9,1.24309]
[1729984372290,0.4024,2487.9,2487.8,0.81401]
[1729984372588,0.8072,2488.0,2487.9,0.4024]
[1729984372791,0.8072,2488.0,2487.8,0.81401]
[1729984373993,0.8072,2488.0,2487.9,0.4024]
[1729984375293,1.6222,2488.0,2487.9,0.4024]
[1729984378796,1.6222,2488.0,2487.8,0.4116]
[1729984378995,0.4024,2487.9,2487.8,0.81401]
[1729984380709,0.4024,2487.9,2487.8,0.4116]
[1729984380906,0.4024,2487.9,2487.8,0.40242]
[1729984381092,0.8288,2487.9,2487.8,0.40242]
[1729984381992,0.4264,2487.9,2487.8,0.40242]
[1729984382393,0.8288,2487.9,2487.8,0.40242]
[1729984382899,0.4264,2487.9,2487.8,0.40242]
[1729984383297,0.4024,2487.9,2487.8,0.40242]
[1729984383596,1.2198,2488.0,2487.8,0.40242]
[1729984383793,1.6222,2488.0,2487.8,0.40242]
[1729984384796,0.815,2487.9,2487.8,0.40242]
[1729984389218,1.21741,2487.9,2487.7,0.82302]
[1729984389413,0.8072,2488.0,2487.8,0.40242]
[1729984389614,0.815,2487.9,2487.8,0.40242]
[1729984405222,2.1198945,2487.9,2487.8,0.40242]
[1729984412027,2.5223045,2487.9,2487.7,0.82303]
[1729984412230,2.5223045,2487.9,2487.7,0.82304]
[1729984412231,0.814,2487.8,2487.7,0.82304]
[1729984414335,0.814,2487.8,2487.7,0.94888649]
[1729984415040,0.814,2487.8,2487.7,0.82304]
[1729984416731,1.21642,2487.8,2487.7,0.82304]
[1729984416934,0.814,2487.8,2487.7,0.82304]
[1729984417741,1.21642,2487.8,2487.7,0.82304]
[1729984418244,0.814,2487.8,2487.7,0.82304]
[1729984419038,1.21642,2487.8,2487.7,0.82304]
[1729984419238,4.834,2487.8,2487.6,0.4446]
[1729984419441,0.40245,2487.6,2487.5,0.4144]
[1729984419744,1.7073445,2487.6,2487.5,0.4144]
[1729984421843,1.7073345,2487.7,2487.6,0.40244]
[1729984422155,1.3048945,2487.7,2487.6,0.40244]
[1729984426044,1.21643,2487.8,2487.4,1.7267945]
[1729984426345,1.21643,2487.8,2487.7,0.40244]
[1729984427039,0.814,2487.8,2487.7,0.40244]
[1729984427347,1.21642,2487.8,2487.4,1.7267945]
[1729984427645,1.3048945,2487.6,2487.4,1.7267945]
[1729984428038,1.3048945,2487.6,2487.5,0.40247]
[1729984432844,1.3048945,2487.6,2487.5,0.84877]
[1729984434544,1.3048945,2487.6,2487.5,1.28097]
[1729984435347,3.6126,2488.0,2487.6,1.00614]
[1729984435552,2.5213045,2487.9,2487.8,0.40241]
[1729984435750,2.1188945,2487.9,2487.8,0.84941]
[1729984438351,2.5212945,2487.9,2487.8,0.84941]
[1729984439454,2.5212945,2487.9,2487.8,0.447]
[1729984440152,2.5212945,2487.9,2487.7,1.27473]
[1729984440153,2.1188945,2487.9,2487.7,0.8723]
[1729984440456,1.7073145,2487.8,2487.7,0.4322]
[1729984445750,0.40242,2487.8,2487.7,0.4322]
[1729984450762,0.81492,2487.8,2487.7,0.4322]
[1729984451763,0.40244,2487.7,2487.6,0.40244]
[1729984452060,0.40245,2487.6,2487.5,0.4145]
[1729984452256,0.40245,2487.6,2487.5,0.54035867]
[1729984452457,1.26965,2487.7,2487.5,0.94281867]
[1729984452659,0.8672,2487.7,2487.5,0.4145]
[1729984452865,1.26964,2487.7,2487.5,1.25986]
[1729984454458,0.40245,2487.6,2487.5,1.25986]
[1729984454661,1.26964,2487.7,2487.5,1.38571878]
[1729984454867,1.26964,2487.7,2487.5,1.25986]
[1729984455763,0.40245,2487.6,2487.5,1.25986]
[1729984455966,0.40245,2487.6,2487.5,1.38571877]
[1729984457067,0.40245,2487.7,2487.6,0.40245]
[1729984457365,1.21645,2487.7,2487.6,0.40245]
[1729984457670,1.21645,2487.7,2487.5,1.25986]
[1729984457671,0.40245,2487.6,2487.5,1.25986]
[1729984457862,0.40245,2487.6,2487.5,1.38571801]
[1729984458859,0.40245,2487.6,2487.5,1.25986]
[1729984460572,0.40245,2487.6,2487.5,1.38571802]
[1729984461665,0.40245,2487.6,2487.5,1.38571745]
[1729984462174,0.40245,2487.6,2487.5,1.38571796]
[1729984463177,0.40245,2487.6,2487.5,1.25986]
[1729984463377,0.40245,2487.6,2487.5,1.38571738]
[1729984463872,1.21645,2487.7,2487.6,0.40245]
[1729984464078,1.21645,2487.7,2487.6,0.52830738]
[1729984466184,1.21645,2487.7,2487.6,0.528306]
[1729984469397,0.814,2487.7,2487.6,0.528306]
[1729984469895,0.814,2487.7,2487.6,0.52830656]
[1729984471491,1.21644,2487.7,2487.6,0.12585656]
[1729984473584,0.814,2487.7,2487.5,1.25987]
[1729984473784,1.21644,2487.7,2487.6,0.12585967]
[1729984477392,1.21644,2487.7,2487.5,1.25987]
[1729984477589,1.21644,2487.7,2487.6,0.12585844]
[1729984477785,0.40244,2487.7,2487.6,0.12585844]
[1729984477986,0.814,2487.7,2487.6,4.14585844]
[1729984478293,0.814,2487.7,2487.6,4.5483054]
[1729984478698,0.814,2487.7,2487.6,0.5283054]
[1729984479188,0.814,2487.7,2487.6,0.52830509]
[1729984483396,1.21644,2487.7,2487.6,0.52830509]
[1729984484398,0.814,2487.7,2487.6,0.52830509]
[1729984487302,1.21644,2487.7,2487.6,0.52830509]
[1729984488907,1.21644,2487.7,2487.6,0.52830775]
[1729984490211,0.814,2487.7,2487.6,0.52830775]
[1729984492717,0.814,2487.7,2487.6,0.52830658]
[1729984499018,1.21644,2487.7,2487.6,0.52830658]
[1729984499921,1.21644,2487.7,2487.6,0.40245]
[1729984500110,1.21644,2487.7,2487.6,0.52830669]
[1729984503015,1.21644,2487.7,2487.6,0.40245]
[1729984503216,1.21644,2487.7,2487.6,0.52830621]
[1729984504115,1.21644,2487.7,2487.6,0.12585621]
[1729984504422,0.40247,2487.5,2487.4,0.84678]
[1729984504723,0.40247,2487.5,2487.4,0.97264119]
[1729984510618,0.40247,2487.5,2487.4,0.97264266]
[1729984511126,0.40247,2487.5,2487.4,0.84678]
[1729984515228,0.40247,2487.5,2487.4,0.4443]
[1729984516118,0.40248,2487.4,2487.3,0.81559]
[1729984516318,0.40248,2487.4,2487.3,0.94145284]
[1729984517218,0.40248,2487.4,2487.3,0.81559]
[1729984517520,0.40248,2487.4,2487.3,0.9414546]
[1729984518231,0.40248,2487.4,2487.3,0.94145412]
[1729984518833,0.40248,2487.4,2487.3,0.9414543]
[1729984519227,0.40248,2487.4,2487.3,0.81559]
[1729984519427,0.40248,2487.5,2487.4,0.40248]
[1729984520133,0.40248,2487.5,2487.4,0.84918]
[1729984522432,0.84556,2487.6,2487.4,0.84918]